[Event "Early-Titled-Tuesday-Blitz-October-10-2023"]
[Site "Chess.com"]
[Date "2023.10.10"]
[Round "5"]
[White "WindWhistler11"]
[Black "Alphafischer2019"]
[Result "1-0"]
[WhiteElo "2474"]
[BlackElo "2581"]
[TimeControl "180+1"]
[EndTime "8:54:13 PDT"]
[Termination "WindWhistler11 won by checkmate"]

1. Nf3 {[%clk 0:03:00.9]} 1... c5 {[%clk 0:02:57.2]} 2. g3 {[%clk 0:03:00.8]}
2... g6 {[%clk 0:02:55.8]} 3. Bg2 {[%clk 0:03:00.4]} 3... Bg7 {[%clk 0:02:56.2]}
4. O-O {[%clk 0:03:00.9]} 4... Nc6 {[%clk 0:02:54.9]} 5. d3 {[%clk 0:02:56.6]}
5... e6 {[%clk 0:02:54.1]} 6. Nbd2 {[%clk 0:02:56.6]} 6... Nge7 {[%clk
0:02:54.5]} 7. e4 {[%clk 0:02:57]} 7... d5 {[%clk 0:02:54]} 8. h4 {[%clk
0:02:56.9]} 8... h6 {[%clk 0:02:53.7]} 9. a3 {[%clk 0:02:55]} 9... O-O {[%clk
0:02:50.8]} 10. Rb1 {[%clk 0:02:55.5]} 10... a5 {[%clk 0:02:49.2]} 11. a4 {[%clk
0:02:49.3]} 11... b6 {[%clk 0:02:46.5]} 12. Re1 {[%clk 0:02:48.7]} 12... Nb4
{[%clk 0:02:37.8]} 13. e5 {[%clk 0:02:38.1]} 13... Bb7 {[%clk 0:02:31.2]} 14.
Nf1 {[%clk 0:02:37.4]} 14... Rc8 {[%clk 0:02:05.7]} 15. c3 {[%clk 0:02:33.4]}
15... Nbc6 {[%clk 0:02:03.7]} 16. N1h2 {[%clk 0:02:28.4]} 16... Nf5 {[%clk
0:01:42.9]} 17. Bd2 {[%clk 0:02:13.9]} 17... Ba6 {[%clk 0:01:34.9]} 18. Bf1
{[%clk 0:02:10.3]} 18... Re8 {[%clk 0:00:51.9]} 19. Qc1 {[%clk 0:01:53.9]} 19...
h5 {[%clk 0:00:47.3]} 20. Bg5 {[%clk 0:01:49.6]} 20... f6 {[%clk 0:00:46.1]} 21.
exf6 {[%clk 0:01:44.8]} 21... Bxf6 {[%clk 0:00:47]} 22. g4 {[%clk 0:01:27.3]}
22... Ng7 {[%clk 0:00:45.7]} 23. Qf4 {[%clk 0:01:23.7]} 23... Rf8 {[%clk
0:00:43.8]} 24. Qg3 {[%clk 0:01:14.3]} 24... Bxg5 {[%clk 0:00:30.4]} 25. Nxg5
{[%clk 0:01:13.6]} 25... Qf6 {[%clk 0:00:30.8]} 26. Re3 {[%clk 0:01:09.4]} 26...
e5 {[%clk 0:00:14.5]} 27. Bg2 {[%clk 0:01:05.8]} 27... Rcd8 {[%clk 0:00:14.7]}
28. Rbe1 {[%clk 0:01:05.1]} 28... Bc8 {[%clk 0:00:09.7]} 29. c4 {[%clk
0:00:59.9]} 29... d4 {[%clk 0:00:06.8]} 30. Rf3 {[%clk 0:00:57.6]} 30... Qd6
{[%clk 0:00:06.1]} 31. Ne4 {[%clk 0:00:56.5]} 31... Qe7 {[%clk 0:00:05.7]} 32.
g5 {[%clk 0:00:52.9]} 32... Nf5 {[%clk 0:00:05.3]} 33. Nf6+ {[%clk 0:00:50]}
33... Rxf6 {[%clk 0:00:04.6]} 34. gxf6 {[%clk 0:00:50.1]} 34... Qxf6 {[%clk
0:00:03.6]} 35. Qg5 {[%clk 0:00:49]} 35... Qxg5 {[%clk 0:00:04]} 36. hxg5 {[%clk
0:00:49.9]} 36... Re8 {[%clk 0:00:04.2]} 37. Rxf5 {[%clk 0:00:44.9]} 37... Bxf5
{[%clk 0:00:03.4]} 38. Bxc6 {[%clk 0:00:45.6]} 38... Re7 {[%clk 0:00:04.2]} 39.
Be4 {[%clk 0:00:45.4]} 39... Bd7 {[%clk 0:00:03.9]} 40. Nf3 {[%clk 0:00:44.6]}
40... Bxa4 {[%clk 0:00:03.6]} 41. Bd5+ {[%clk 0:00:45.3]} 41... Kg7 {[%clk
0:00:03.8]} 42. Rxe5 {[%clk 0:00:45.7]} 42... Rc7 {[%clk 0:00:03.6]} 43. Re6
{[%clk 0:00:44.4]} 43... Rf7 {[%clk 0:00:02.1]} 44. Ne5 {[%clk 0:00:43.9]} 44...
Rc7 {[%clk 0:00:01.9]} 45. Rxg6+ {[%clk 0:00:44.1]} 45... Kh7 {[%clk 0:00:02.8]}
46. Rh6+ {[%clk 0:00:44.2]} 46... Kg7 {[%clk 0:00:02.5]} 47. Be4 {[%clk
0:00:43.3]} 47... Bc2 {[%clk 0:00:02.5]} 48. Rh7+ {[%clk 0:00:43.5]} 48... Kf8
{[%clk 0:00:03.4]} 49. Rxc7 {[%clk 0:00:44.1]} 49... Ke8 {[%clk 0:00:03.9]} 50.
g6 {[%clk 0:00:44.4]} 50... Bxd3 {[%clk 0:00:03.4]} 51. Bxd3 {[%clk 0:00:44.2]}
51... Kd8 {[%clk 0:00:03.3]} 52. Rf7 {[%clk 0:00:44.9]} 52... Ke8 {[%clk
0:00:02.9]} 53. g7 {[%clk 0:00:45.8]} 53... Kd8 {[%clk 0:00:03.8]} 54. g8=Q#
{[%clk 0:00:46.7]} 1-0

[Event "Early-Titled-Tuesday-Blitz-October-10-2023"]
[Site "Chess.com"]
[Date "2023.10.10"]
[Round "5"]
[White "queen_iryna"]
[Black "stratacticos"]
[Result "1/2-1/2"]
[WhiteElo "2338"]
[BlackElo "1792"]
[TimeControl "180+1"]
[EndTime "8:54:15 PDT"]
[Termination "Game drawn by repetition"]

1. e4 {[%clk 0:02:59.5]} 1... c5 {[%clk 0:02:59.3]} 2. Nf3 {[%clk 0:02:59.1]}
2... Nc6 {[%clk 0:02:59]} 3. Bb5 {[%clk 0:02:58.8]} 3... Na5 {[%clk 0:02:58.4]}
4. b3 {[%clk 0:02:55.8]} 4... a6 {[%clk 0:02:58.1]} 5. Bd3 {[%clk 0:02:55.1]}
5... b5 {[%clk 0:02:56.4]} 6. Bb2 {[%clk 0:02:53.5]} 6... Rb8 {[%clk 0:02:52.7]}
7. O-O {[%clk 0:02:52.4]} 7... c4 {[%clk 0:02:52.1]} 8. Be2 {[%clk 0:02:51.2]}
8... d6 {[%clk 0:02:47.9]} 9. d3 {[%clk 0:02:48.6]} 9... Be6 {[%clk 0:02:29.6]}
10. Nbd2 {[%clk 0:02:46.5]} 10... Qc7 {[%clk 0:02:24.9]} 11. Bd4 {[%clk
0:02:34.3]} 11... c3 {[%clk 0:02:18.6]} 12. b4 {[%clk 0:02:23]} 12... Nb7 {[%clk
0:02:05.2]} 13. Nb3 {[%clk 0:02:21.9]} 13... f6 {[%clk 0:01:57.9]} 14. a4 {[%clk
0:02:17.9]} 14... Bf7 {[%clk 0:01:50.1]} 15. axb5 {[%clk 0:02:17]} 15... axb5
{[%clk 0:01:50]} 16. Ra7 {[%clk 0:02:16.2]} 16... e5 {[%clk 0:01:49.4]} 17. Be3
{[%clk 0:02:16]} 17... Ne7 {[%clk 0:01:47.1]} 18. Qa1 {[%clk 0:02:13.6]} 18...
Nc6 {[%clk 0:01:46.1]} 19. Ra8 {[%clk 0:02:11.7]} 19... Be7 {[%clk 0:01:44.7]}
20. Rxb8+ {[%clk 0:02:07.5]} 20... Nxb8 {[%clk 0:01:38.1]} 21. d4 {[%clk
0:02:06.3]} 21... O-O {[%clk 0:01:31.3]} 22. Bxb5 {[%clk 0:02:01.9]} 22... d5
{[%clk 0:01:20.9]} 23. dxe5 {[%clk 0:01:44.6]} 23... dxe4 {[%clk 0:01:18.8]} 24.
Nfd4 {[%clk 0:01:39]} 24... fxe5 {[%clk 0:01:12.2]} 25. Ne2 {[%clk 0:01:38.5]}
25... Bxb4 {[%clk 0:01:11]} 26. Qa7 {[%clk 0:01:22.5]} 26... Nc6 {[%clk
0:01:07.8]} 27. Bxc6 {[%clk 0:01:21.9]} 27... Qxc6 {[%clk 0:01:07.4]} 28. Ng3
{[%clk 0:01:12.3]} 28... Bxb3 {[%clk 0:01:05.4]} 29. cxb3 {[%clk 0:01:11.5]}
29... Bc5 {[%clk 0:01:02.2]} 30. Bxc5 {[%clk 0:01:09.4]} 30... Nxc5 {[%clk
0:01:02.1]} 31. b4 {[%clk 0:00:55.7]} 31... Nd3 {[%clk 0:00:55.8]} 32. Qa2+
{[%clk 0:00:54.7]} 32... Kh8 {[%clk 0:00:53.6]} 33. Qc2 {[%clk 0:00:53.7]} 33...
Nxb4 {[%clk 0:00:50.4]} 34. Qxe4 {[%clk 0:00:53.4]} 34... Qxe4 {[%clk
0:00:48.9]} 35. Nxe4 {[%clk 0:00:54.3]} 35... c2 {[%clk 0:00:47.9]} 36. Nd2
{[%clk 0:00:43.4]} 36... Rd8 {[%clk 0:00:39]} 37. Nb3 {[%clk 0:00:42.5]} 37...
Rd1 {[%clk 0:00:38.7]} 38. g3 {[%clk 0:00:40.8]} 38... Nd3 {[%clk 0:00:38.1]}
39. Kg2 {[%clk 0:00:38.6]} 39... Rxf1 {[%clk 0:00:36.7]} 40. Kxf1 {[%clk
0:00:39.5]} 40... c1=Q+ {[%clk 0:00:36.2]} 41. Nxc1 {[%clk 0:00:38.3]} 41...
Nxc1 {[%clk 0:00:37.1]} 42. Ke1 {[%clk 0:00:39.1]} 42... Nd3+ {[%clk 0:00:31.9]}
43. Ke2 {[%clk 0:00:40]} 43... e4 {[%clk 0:00:31.5]} 44. Ke3 {[%clk 0:00:39.8]}
44... g6 {[%clk 0:00:28.5]} 45. f3 {[%clk 0:00:39.6]} 45... exf3 {[%clk
0:00:20.3]} 46. Kxd3 {[%clk 0:00:39.3]} 46... g5 {[%clk 0:00:19.5]} 47. g4
{[%clk 0:00:39.4]} 47... h5 {[%clk 0:00:18.8]} 48. h3 {[%clk 0:00:39.4]} 48...
hxg4 {[%clk 0:00:18.7]} 49. hxg4 {[%clk 0:00:40.3]} 49... Kg7 {[%clk 0:00:19.2]}
50. Ke3 {[%clk 0:00:40.6]} 50... Kf6 {[%clk 0:00:20.1]} 51. Kxf3 {[%clk
0:00:40.8]} 51... Ke5 {[%clk 0:00:20.4]} 52. Ke3 {[%clk 0:00:41.1]} 52... Kd5
{[%clk 0:00:20.5]} 53. Kd3 {[%clk 0:00:41.4]} 53... Ke5 {[%clk 0:00:19.7]} 54.
Ke3 {[%clk 0:00:41.5]} 54... Kd5 {[%clk 0:00:19.7]} 55. Kd3 {[%clk 0:00:41.7]}
55... Ke5 {[%clk 0:00:19.6]} 56. Ke3 {[%clk 0:00:42]} 1/2-1/2

[Event "Early-Titled-Tuesday-Blitz-October-10-2023"]
[Site "Chess.com"]
[Date "2023.10.10"]
[Round "5"]
[White "DenLaz"]
[Black "SAInt_666"]
[Result "1-0"]
[WhiteElo "3068"]
[BlackElo "2678"]
[TimeControl "180+1"]
[EndTime "8:54:18 PDT"]
[Termination "DenLaz won on time"]

1. d4 {[%clk 0:03:00.9]} 1... Nf6 {[%clk 0:02:59.2]} 2. c4 {[%clk 0:03:00.9]}
2... e6 {[%clk 0:02:58.9]} 3. Nc3 {[%clk 0:03:00.8]} 3... Bb4 {[%clk 0:02:58.9]}
4. e3 {[%clk 0:03:01.3]} 4... O-O {[%clk 0:02:58.5]} 5. Bd3 {[%clk 0:03:01.9]}
5... d5 {[%clk 0:02:57.6]} 6. cxd5 {[%clk 0:03:00.8]} 6... exd5 {[%clk
0:02:57.7]} 7. a3 {[%clk 0:03:00.9]} 7... Bd6 {[%clk 0:02:57.3]} 8. Nge2 {[%clk
0:03:00.5]} 8... c6 {[%clk 0:02:54.6]} 9. Qc2 {[%clk 0:02:55.2]} 9... Re8 {[%clk
0:02:52]} 10. Bd2 {[%clk 0:02:54.8]} 10... a5 {[%clk 0:02:52]} 11. O-O {[%clk
0:02:51.4]} 11... Na6 {[%clk 0:02:50.3]} 12. f3 {[%clk 0:02:49.8]} 12... c5
{[%clk 0:02:42.1]} 13. Rad1 {[%clk 0:02:48.6]} 13... c4 {[%clk 0:02:23.5]} 14.
Bf5 {[%clk 0:02:47.5]} 14... Bxf5 {[%clk 0:02:24.2]} 15. Qxf5 {[%clk 0:02:46.3]}
15... Qc8 {[%clk 0:02:25.1]} 16. Qc2 {[%clk 0:02:36.3]} 16... Qc6 {[%clk
0:02:19.7]} 17. g4 {[%clk 0:02:05.5]} 17... b5 {[%clk 0:02:13.2]} 18. g5 {[%clk
0:02:05]} 18... Nd7 {[%clk 0:02:13.3]} 19. e4 {[%clk 0:02:04]} 19... Nc7 {[%clk
0:02:05.2]} 20. e5 {[%clk 0:01:42.8]} 20... Bf8 {[%clk 0:02:04.8]} 21. f4 {[%clk
0:01:42.8]} 21... b4 {[%clk 0:02:02]} 22. Nb1 {[%clk 0:01:42.1]} 22... Nb6
{[%clk 0:01:52.6]} 23. f5 {[%clk 0:01:37.4]} 23... Qa4 {[%clk 0:01:42.2]} 24.
Qc1 {[%clk 0:01:32.6]} 24... c3 {[%clk 0:01:25.9]} 25. Nbxc3 {[%clk 0:01:14.1]}
25... bxc3 {[%clk 0:01:24.3]} 26. Bxc3 {[%clk 0:01:15]} 26... Qc4 {[%clk
0:01:19.1]} 27. Qe3 {[%clk 0:01:08.1]} 27... Qc6 {[%clk 0:00:59.2]} 28. Rf4
{[%clk 0:01:05.7]} 28... g6 {[%clk 0:00:51.8]} 29. Qh3 {[%clk 0:00:58.8]} 29...
Qd7 {[%clk 0:00:45.8]} 30. Rdf1 {[%clk 0:00:55.7]} 30... Bg7 {[%clk 0:00:19.7]}
31. Rh4 {[%clk 0:00:53.3]} 31... gxf5 {[%clk 0:00:20.3]} 32. Rxf5 {[%clk
0:00:31.6]} 32... Re6 {[%clk 0:00:20.1]} 33. Nf4 {[%clk 0:00:27.5]} 33... Rg6
{[%clk 0:00:17.6]} 34. Rxh7 {[%clk 0:00:20.2]} 34... Re8 {[%clk 0:00:07.1]} 35.
Nh5 {[%clk 0:00:12.8]} 35... Rxg5+ {[%clk 0:00:03.5]} 36. Rxg5 {[%clk 0:00:13]}
36... Qxh3 {[%clk 0:00:04.4]} 37. Nf6+ {[%clk 0:00:09.1]} 37... Kf8 {[%clk
0:00:04.4]} 38. Rxh3 {[%clk 0:00:09.8]} 38... Bxf6 {[%clk 0:00:03.5]} 39. exf6
{[%clk 0:00:09.9]} 1-0

[Event "Early-Titled-Tuesday-Blitz-October-10-2023"]
[Site "Chess.com"]
[Date "2023.10.10"]
[Round "5"]
[White "RobertoJBM"]
[Black "Alex_Sahakyan2006"]
[Result "0-1"]
[WhiteElo "2816"]
[BlackElo "2720"]
[TimeControl "180+1"]
[EndTime "8:54:18 PDT"]
[Termination "Alex_Sahakyan2006 won by checkmate"]

1. d4 {[%clk 0:03:00.9]} 1... Nf6 {[%clk 0:02:55.8]} 2. c4 {[%clk 0:02:58.5]}
2... c5 {[%clk 0:02:53.5]} 3. d5 {[%clk 0:02:58]} 3... b5 {[%clk 0:02:52.9]} 4.
cxb5 {[%clk 0:02:58.3]} 4... a6 {[%clk 0:02:53.3]} 5. b6 {[%clk 0:02:58.8]} 5...
d6 {[%clk 0:02:51.1]} 6. Nc3 {[%clk 0:02:54.9]} 6... Nbd7 {[%clk 0:02:50.2]} 7.
e4 {[%clk 0:02:53.6]} 7... Rb8 {[%clk 0:02:49.2]} 8. Nf3 {[%clk 0:02:52.7]} 8...
g6 {[%clk 0:02:49.1]} 9. Be2 {[%clk 0:02:51.1]} 9... Nxb6 {[%clk 0:02:48.9]} 10.
a4 {[%clk 0:02:50.9]} 10... Bg7 {[%clk 0:02:48.4]} 11. a5 {[%clk 0:02:50.6]}
11... Na8 {[%clk 0:02:48.6]} 12. O-O {[%clk 0:02:50.5]} 12... O-O {[%clk
0:02:48]} 13. Nd2 {[%clk 0:02:48.9]} 13... Nc7 {[%clk 0:02:47.1]} 14. Nc4 {[%clk
0:02:42.8]} 14... Nd7 {[%clk 0:02:46.7]} 15. Bg5 {[%clk 0:02:37.6]} 15... Qe8
{[%clk 0:02:33.9]} 16. Qd2 {[%clk 0:02:25.2]} 16... Nb5 {[%clk 0:02:26.3]} 17.
Bh6 {[%clk 0:02:20.4]} 17... Nd4 {[%clk 0:02:23.9]} 18. Bxg7 {[%clk 0:02:20.1]}
18... Kxg7 {[%clk 0:02:23.1]} 19. Bd1 {[%clk 0:02:12.4]} 19... Rb4 {[%clk
0:02:10.9]} 20. Ra4 {[%clk 0:01:57.9]} 20... Rxa4 {[%clk 0:02:04.1]} 21. Nxa4
{[%clk 0:01:58.8]} 21... Nf6 {[%clk 0:02:01.3]} 22. Re1 {[%clk 0:01:34.6]} 22...
Bd7 {[%clk 0:01:55.9]} 23. Nab6 {[%clk 0:01:30.4]} 23... Bb5 {[%clk 0:01:54.3]}
24. e5 {[%clk 0:01:20.6]} 24... Nxd5 {[%clk 0:01:48.1]} 25. exd6 {[%clk
0:01:19.8]} 25... Bxc4 {[%clk 0:01:37.4]} 26. Nxc4 {[%clk 0:01:09.9]} 26... e6
{[%clk 0:01:32.2]} 27. h4 {[%clk 0:00:40.9]} 27... h6 {[%clk 0:01:03.6]} 28. h5
{[%clk 0:00:36.7]} 28... g5 {[%clk 0:01:03.9]} 29. Re4 {[%clk 0:00:31.2]} 29...
Nf6 {[%clk 0:00:58.4]} 30. Re3 {[%clk 0:00:29]} 30... Qb5 {[%clk 0:00:54.3]} 31.
b3 {[%clk 0:00:28.7]} 31... Rd8 {[%clk 0:00:53]} 32. f4 {[%clk 0:00:27.1]} 32...
gxf4 {[%clk 0:00:37.7]} 33. Rd3 {[%clk 0:00:27.4]} 33... f3 {[%clk 0:00:31]} 34.
gxf3 {[%clk 0:00:25.8]} 34... Nd5 {[%clk 0:00:23.9]} 35. f4 {[%clk 0:00:25.4]}
35... Qb4 {[%clk 0:00:16.6]} 36. Rg3+ {[%clk 0:00:23.6]} 36... Kf6 {[%clk
0:00:14.8]} 37. Qf2 {[%clk 0:00:22.1]} 37... Nf5 {[%clk 0:00:13.3]} 38. Rd3
{[%clk 0:00:21.1]} 38... Rg8+ {[%clk 0:00:12.2]} 39. Kh2 {[%clk 0:00:21.7]}
39... Qb8 {[%clk 0:00:10.7]} 40. Bf3 {[%clk 0:00:18.6]} 40... Nxd6 {[%clk
0:00:08.9]} 41. Bxd5 {[%clk 0:00:18.5]} 41... exd5 {[%clk 0:00:09.5]} 42. Rxd5
{[%clk 0:00:18.1]} 42... Nxc4 {[%clk 0:00:09.6]} 43. bxc4 {[%clk 0:00:19]} 43...
Kg7 {[%clk 0:00:09.2]} 44. Rxc5 {[%clk 0:00:18.4]} 44... Kh7 {[%clk 0:00:09.2]}
45. Qc2+ {[%clk 0:00:17.9]} 45... Kh8 {[%clk 0:00:09.8]} 46. Qf5 {[%clk
0:00:17.9]} 46... Qb2+ {[%clk 0:00:10]} 47. Kh3 {[%clk 0:00:18]} 47... Qg2+
{[%clk 0:00:10.6]} 48. Kh4 {[%clk 0:00:18.2]} 48... Qg3# {[%clk 0:00:11.5]} 0-1

[Event "Early-Titled-Tuesday-Blitz-October-10-2023"]
[Site "Chess.com"]
[Date "2023.10.10"]
[Round "5"]
[White "ArtemDyachuk"]
[Black "ChessFighter_2011"]
[Result "0-1"]
[WhiteElo "2663"]
[BlackElo "2869"]
[TimeControl "180+1"]
[EndTime "8:54:21 PDT"]
[Termination "ChessFighter_2011 won on time"]

1. e4 {[%clk 0:03:00.9]} 1... c5 {[%clk 0:02:54.7]} 2. Nf3 {[%clk 0:03:00.5]}
2... d6 {[%clk 0:02:55]} 3. d4 {[%clk 0:02:56]} 3... cxd4 {[%clk 0:02:54.4]} 4.
Nxd4 {[%clk 0:02:56.9]} 4... Nf6 {[%clk 0:02:54.7]} 5. Nc3 {[%clk 0:02:57.3]}
5... a6 {[%clk 0:02:55.2]} 6. Bc4 {[%clk 0:02:55.8]} 6... e6 {[%clk 0:02:52.2]}
7. O-O {[%clk 0:02:53.8]} 7... Nbd7 {[%clk 0:02:52.2]} 8. a4 {[%clk 0:02:51.2]}
8... Nc5 {[%clk 0:02:48.5]} 9. Re1 {[%clk 0:02:50.5]} 9... Qc7 {[%clk
0:02:35.1]} 10. Qf3 {[%clk 0:02:15.5]} 10... Be7 {[%clk 0:02:33.4]} 11. Qg3
{[%clk 0:02:04.6]} 11... g6 {[%clk 0:02:22]} 12. Bh6 {[%clk 0:01:59.1]} 12...
Bd7 {[%clk 0:02:04.4]} 13. Ba2 {[%clk 0:01:19]} 13... Bc6 {[%clk 0:01:56.3]} 14.
Nxc6 {[%clk 0:01:12.1]} 14... Qxc6 {[%clk 0:01:56.3]} 15. Rad1 {[%clk
0:00:58.5]} 15... O-O-O {[%clk 0:01:44.7]} 16. Qf3 {[%clk 0:00:49.1]} 16... Rhg8
{[%clk 0:01:42.2]} 17. Bg5 {[%clk 0:00:46.2]} 17... Ncd7 {[%clk 0:01:42]} 18.
Nd5 {[%clk 0:00:39.3]} 18... exd5 {[%clk 0:01:20.6]} 19. exd5 {[%clk 0:00:40.2]}
19... Qxa4 {[%clk 0:01:04.9]} 20. Bb3 {[%clk 0:00:30.3]} 20... Qg4 {[%clk
0:00:46]} 21. Qxg4 {[%clk 0:00:28.4]} 21... Nxg4 {[%clk 0:00:46.9]} 22. Rxe7
{[%clk 0:00:21.9]} 22... h6 {[%clk 0:00:41.9]} 23. Bf4 {[%clk 0:00:21]} 23...
Nge5 {[%clk 0:00:34.8]} 24. Bg3 {[%clk 0:00:15.6]} 24... Rde8 {[%clk 0:00:32.7]}
25. Rxe8+ {[%clk 0:00:15.8]} 25... Rxe8 {[%clk 0:00:33.6]} 26. h3 {[%clk
0:00:16.5]} 26... Nf6 {[%clk 0:00:31.6]} 27. Bf4 {[%clk 0:00:14.2]} 27... g5
{[%clk 0:00:31.9]} 28. Be3 {[%clk 0:00:14.5]} 28... Nh5 {[%clk 0:00:30.6]} 29.
Rd4 {[%clk 0:00:13.3]} 29... f5 {[%clk 0:00:29.2]} 30. Ba4 {[%clk 0:00:09.9]}
30... b5 {[%clk 0:00:29.1]} 31. Bb3 {[%clk 0:00:10]} 31... Kd7 {[%clk
0:00:28.5]} 32. h4 {[%clk 0:00:06.3]} 32... f4 {[%clk 0:00:26.7]} 33. Bd2 {[%clk
0:00:06.6]} 33... Ng4 {[%clk 0:00:27]} 34. hxg5 {[%clk 0:00:04.7]} 34... hxg5
{[%clk 0:00:27.2]} 35. c4 {[%clk 0:00:05.2]} 35... Nhf6 {[%clk 0:00:20.4]} 36.
Bc2 {[%clk 0:00:04.2]} 36... Kc7 {[%clk 0:00:18.9]} 37. Ba5+ {[%clk 0:00:03.5]}
37... Kb7 {[%clk 0:00:18.9]} 38. Bf5 {[%clk 0:00:04]} 38... Ne5 {[%clk
0:00:17.3]} 39. cxb5 {[%clk 0:00:02.5]} 39... axb5 {[%clk 0:00:18.2]} 40. b4
{[%clk 0:00:02.6]} 40... Nc4 {[%clk 0:00:18.4]} 41. Kf1 {[%clk 0:00:02.2]} 41...
Rh8 {[%clk 0:00:17.8]} 42. Kg1 {[%clk 0:00:01.5]} 42... Ra8 {[%clk 0:00:18]} 0-1

[Event "Early-Titled-Tuesday-Blitz-October-10-2023"]
[Site "Chess.com"]
[Date "2023.10.10"]
[Round "5"]
[White "kirillshevchenko"]
[Black "Ali_rastbod"]
[Result "1-0"]
[WhiteElo "2977"]
[BlackElo "2745"]
[TimeControl "180+1"]
[EndTime "8:54:22 PDT"]
[Termination "kirillshevchenko won by checkmate"]

1. c4 {[%clk 0:02:51.8]} 1... e5 {[%clk 0:02:59.7]} 2. Nc3 {[%clk 0:02:51.6]}
2... Bb4 {[%clk 0:03:00.3]} 3. Nd5 {[%clk 0:02:49]} 3... Bc5 {[%clk 0:02:59.5]}
4. e3 {[%clk 0:02:48.7]} 4... c6 {[%clk 0:02:59.6]} 5. d4 {[%clk 0:02:43.9]}
5... exd4 {[%clk 0:03:00.5]} 6. exd4 {[%clk 0:02:44.8]} 6... Be7 {[%clk
0:03:00.4]} 7. Nc3 {[%clk 0:02:42.5]} 7... d5 {[%clk 0:03:00.4]} 8. cxd5 {[%clk
0:02:42.8]} 8... cxd5 {[%clk 0:03:01.3]} 9. Nf3 {[%clk 0:02:43.3]} 9... Nf6
{[%clk 0:03:01.8]} 10. Bd3 {[%clk 0:02:43.3]} 10... O-O {[%clk 0:03:02.4]} 11.
h3 {[%clk 0:02:44]} 11... Nc6 {[%clk 0:03:01.8]} 12. O-O {[%clk 0:02:44.7]}
12... h6 {[%clk 0:03:00.2]} 13. Bf4 {[%clk 0:02:40.7]} 13... Bd6 {[%clk
0:03:00.5]} 14. Qd2 {[%clk 0:02:37.6]} 14... Bxf4 {[%clk 0:02:59.3]} 15. Qxf4
{[%clk 0:02:37.8]} 15... Be6 {[%clk 0:02:52.8]} 16. Rac1 {[%clk 0:02:34.3]}
16... Rc8 {[%clk 0:02:46.2]} 17. a3 {[%clk 0:02:34.5]} 17... Na5 {[%clk
0:02:43.5]} 18. Nb5 {[%clk 0:02:20.5]} 18... a6 {[%clk 0:02:37.6]} 19. Rxc8
{[%clk 0:02:12.9]} 19... Bxc8 {[%clk 0:02:38.5]} 20. Nd6 {[%clk 0:02:07.4]}
20... Be6 {[%clk 0:01:52.5]} 21. b4 {[%clk 0:01:57.2]} 21... Nc4 {[%clk
0:01:28.2]} 22. Nxb7 {[%clk 0:01:54.6]} 22... Qb6 {[%clk 0:01:28.1]} 23. Nc5
{[%clk 0:01:55.1]} 23... a5 {[%clk 0:01:28.3]} 24. bxa5 {[%clk 0:01:52]} 24...
Qxa5 {[%clk 0:01:27.8]} 25. a4 {[%clk 0:01:41.3]} 25... Nd7 {[%clk 0:01:19.8]}
26. Nxe6 {[%clk 0:01:17.1]} 26... fxe6 {[%clk 0:01:20.7]} 27. Qg4 {[%clk
0:01:17.8]} 27... Re8 {[%clk 0:01:16.5]} 28. Qg6 {[%clk 0:00:57]} 28... Nf6
{[%clk 0:01:16.6]} 29. Ne5 {[%clk 0:00:57.4]} 29... Nd6 {[%clk 0:01:17]} 30. Bc2
{[%clk 0:00:47.5]} 30... Rc8 {[%clk 0:00:53.3]} 31. Ng4 {[%clk 0:00:38.2]} 31...
Nxg4 {[%clk 0:00:22.6]} 32. Qxe6+ {[%clk 0:00:37.5]} 32... Kh8 {[%clk
0:00:22.3]} 33. Qxd6 {[%clk 0:00:37.6]} 33... Rxc2 {[%clk 0:00:19.5]} 34. Qf8+
{[%clk 0:00:37.6]} 34... Kh7 {[%clk 0:00:19.7]} 35. Qf5+ {[%clk 0:00:38.5]}
35... Kh8 {[%clk 0:00:20]} 36. Qxc2 {[%clk 0:00:39.4]} 36... Nf6 {[%clk
0:00:20.2]} 37. Qc8+ {[%clk 0:00:31.4]} 37... Kh7 {[%clk 0:00:19.4]} 38. Qf5+
{[%clk 0:00:32]} 38... Kh8 {[%clk 0:00:20.1]} 39. Rb1 {[%clk 0:00:32.3]} 39...
Qa7 {[%clk 0:00:16.7]} 40. Rc1 {[%clk 0:00:31.9]} 40... Kg8 {[%clk 0:00:15]} 41.
Qe6+ {[%clk 0:00:27.5]} 41... Kh7 {[%clk 0:00:15.1]} 42. Rc8 {[%clk 0:00:28]}
42... Qxd4 {[%clk 0:00:08.9]} 43. Qf5+ {[%clk 0:00:27.1]} 43... g6 {[%clk
0:00:09.1]} 44. Rc7+ {[%clk 0:00:27.8]} 44... Kh8 {[%clk 0:00:08.9]} 45. Qc8+
{[%clk 0:00:25.5]} 45... Ng8 {[%clk 0:00:08.7]} 46. Qd7 {[%clk 0:00:26.2]} 46...
Qa1+ {[%clk 0:00:07.8]} 47. Kh2 {[%clk 0:00:26.5]} 47... Qe5+ {[%clk 0:00:08.5]}
48. g3 {[%clk 0:00:27.2]} 48... Nf6 {[%clk 0:00:05.1]} 49. Qg7# {[%clk
0:00:26.7]} 1-0